bitfinex-derivatives/quotes_BTCF0:USTF0_20250713
["timestamp","ask_amount","ask_price","bid_price","bid_amount"]
[1752379261399,0.5579253,117840.0,117830.0,1.97107532]
[1752379261692,0.5579253,117840.0,117820.0,0.02275]
[1752379261693,0.1696781,117830.0,117820.0,0.02275]
[1752379261900,0.10132,117820.0,117810.0,0.56173852]
[1752379262091,0.29066688,117820.0,117810.0,0.56173852]
[1752379262296,0.29066688,117820.0,117810.0,0.2944513]
[1752379262497,0.29066688,117820.0,117810.0,0.82902574]
[1752379262793,0.5579541,117820.0,117810.0,0.2944513]
[1752379262997,0.29066688,117820.0,117810.0,0.56173852]
[1752379266402,0.29066688,117820.0,117810.0,0.82902574]
[1752379267100,0.29066688,117820.0,117810.0,1.18982574]
[1752379274404,0.86654688,117820.0,117810.0,1.18982574]
[1752379276308,0.29066688,117820.0,117810.0,1.18982574]
[1752379276511,0.69681438,117820.0,117810.0,1.18982574]
[1752379277010,0.86650688,117820.0,117810.0,1.18982574]
[1752379285918,0.69661438,117820.0,117810.0,1.18982574]
[1752379287621,0.86630688,117820.0,117810.0,1.18982574]
[1752379287813,0.86630688,117820.0,117810.0,0.6552513]
[1752379288013,0.86630688,117820.0,117810.0,1.18982574]
[1752379289124,0.86630688,117820.0,117810.0,0.82902574]
[1752379289317,0.86630688,117820.0,117810.0,1.18982574]
[1752379292124,0.86630688,117820.0,117810.0,0.82902574]
[1752379294327,0.86630688,117820.0,117810.0,0.2944513]
[1752379294628,0.86630688,117820.0,117810.0,0.82902574]
[1752379295429,0.86630688,117820.0,117810.0,0.56173852]
[1752379297230,0.86630688,117820.0,117810.0,0.82902574]
[1752379299032,0.86630688,117820.0,117810.0,0.2944513]
[1752379299245,0.86630688,117820.0,117810.0,0.82902574]
[1752379299429,0.86630688,117820.0,117810.0,0.56173852]
[1752379299636,0.86630688,117820.0,117810.0,0.53898852]
[1752379301133,0.86630688,117820.0,117810.0,0.56173852]
[1752379301735,0.86630688,117820.0,117810.0,0.53898852]
[1752379301939,1.4943941,117820.0,117810.0,0.1868616]
[1752379302244,1.4943941,117820.0,117810.0,0.45414882]
[1752379303139,1.4943941,117820.0,117810.0,0.1868616]
[1752379303345,1.4943941,117820.0,117810.0,0.45414882]
[1752379306645,1.56399991,117820.0,117810.0,0.45414882]
[1752379308847,1.20319991,117820.0,117810.0,0.45414882]
[1752379309147,1.56399991,117820.0,117810.0,0.45414882]
[1752379309346,1.20319991,117820.0,117810.0,0.45414882]
[1752379310348,1.56399991,117820.0,117810.0,0.45414882]
[1752379311048,1.20319991,117820.0,117810.0,0.45414882]
[1752379317154,1.20323544,117820.0,117810.0,0.45414882]
[1752379322657,0.93594822,117820.0,117810.0,0.45414882]
[1752379322856,1.20323544,117820.0,117810.0,0.45414882]
[1752379324157,0.93594822,117820.0,117810.0,0.45414882]
[1752379324364,1.20323544,117820.0,117810.0,0.45414882]
[1752379325054,1.56403544,117820.0,117810.0,0.45414882]
[1752379325361,1.20399544,117820.0,117810.0,0.45414882]
[1752379325554,1.56479544,117820.0,117810.0,0.45414882]
[1752379326152,1.56479544,117820.0,117810.0,0.1868616]
[1752379326358,1.56479544,117820.0,117810.0,0.45414882]
[1752379329269,1.56479544,117820.0,117810.0,0.1868616]
[1752379329462,1.56479544,117820.0,117810.0,0.45414882]
[1752379332967,1.56479544,117820.0,117810.0,0.1868616]
[1752379333167,1.56479544,117820.0,117810.0,0.45414882]
[1752379333570,1.56479544,117820.0,117810.0,0.1868616]
[1752379333770,1.56479544,117820.0,117810.0,0.45414882]
[1752379339175,1.56479544,117820.0,117810.0,0.1868616]
[1752379339370,1.56479544,117820.0,117810.0,0.45414882]
[1752379341270,1.29750822,117820.0,117810.0,0.45414882]
[1752379341471,1.56479544,117820.0,117810.0,0.45414882]
[1752379342678,1.56479544,117820.0,117810.0,0.1868616]
[1752379342878,1.56479544,117820.0,117810.0,0.45414882]
[1752379344369,1.29750822,117820.0,117810.0,0.45414882]
[1752379344576,1.56479544,117820.0,117810.0,0.45414882]
[1752379346473,1.29750822,117820.0,117810.0,0.45414882]
[1752379346673,0.72110822,117820.0,117810.0,0.45414882]
[1752379346875,1.56527544,117820.0,117810.0,0.45414882]
[1752379347277,1.56551544,117820.0,117810.0,0.45414882]
[1752379347884,1.56555544,117820.0,117810.0,0.45414882]
[1752379352173,1.56547544,117820.0,117810.0,0.45414882]
[1752379358286,1.29818822,117820.0,117810.0,0.45414882]
[1752379358487,1.56547544,117820.0,117810.0,0.45414882]
[1752379359682,1.54598553,117820.0,117810.0,0.45414882]
[1752379359980,1.56631009,117820.0,117810.0,0.45414882]
[1752379369490,1.56631009,117820.0,117810.0,0.1868616]
[1752379369684,1.56631009,117820.0,117810.0,0.45414882]
[1752379370500,1.56631009,117820.0,117810.0,0.1868616]
[1752379370693,1.56631009,117820.0,117810.0,0.45414882]
[1752379371186,1.20551009,117820.0,117810.0,0.45414882]
[1752379371394,1.56631009,117820.0,117810.0,0.45414882]
[1752379376395,0.2739366,117810.0,117800.0,0.00169772]
[1752379376598,1.1898356,117810.0,117800.0,0.00169772]
[1752379376901,0.92254838,117810.0,117800.0,0.00169772]
[1752379377089,0.92254838,117810.0,117800.0,0.01095074]
[1752379377294,0.92254838,117810.0,117800.0,0.00169772]
[1752379377998,0.65526116,117810.0,117800.0,0.17141872]
[1752379378297,0.90222382,117810.0,117800.0,0.17141872]
[1752379378496,0.92253891,117810.0,117800.0,0.18083266]
[1752379380198,0.92253891,117810.0,117800.0,0.44811988]
[1752379380995,0.56173891,117810.0,117800.0,0.44811988]
[1752379381694,0.92253891,117810.0,117800.0,0.44811988]
[1752379385606,0.98353819,117810.0,117800.0,0.44811988]
[1752379387706,0.98353819,117810.0,117800.0,0.18083266]
[1752379387906,1.56113819,117810.0,117800.0,0.44811988]
[1752379388212,1.56113819,117810.0,117800.0,0.18083266]
[1752379388402,1.50013891,117810.0,117800.0,0.44811988]
[1752379388603,1.56113819,117810.0,117800.0,0.44811988]
[1752379388907,1.50013891,117810.0,117800.0,0.44811988]
[1752379390106,1.5408231,117810.0,117800.0,0.44811988]
[1752379390307,1.50010991,117810.0,117800.0,0.44811988]
[1752379391603,1.23330269,117810.0,117800.0,0.47086988]
[1752379392508,1.50058991,117810.0,117800.0,0.44811988]
[1752379394010,1.23330269,117810.0,117800.0,0.44811988]
[1752379394307,1.50058991,117810.0,117800.0,0.44811988]
[1752379396710,1.13978991,117810.0,117800.0,0.44811988]
[1752379399112,1.50058991,117810.0,117800.0,0.44811988]
[1752379401113,1.13978991,117810.0,117800.0,0.44811988]
[1752379401413,1.50058991,117810.0,117800.0,0.44811988]
[1752379402312,1.50058991,117810.0,117800.0,0.18083266]
[1752379402512,1.50058991,117810.0,117800.0,0.44811988]
[1752379404726,1.23330269,117810.0,117800.0,0.18083266]
[1752379405025,1.56158919,117810.0,117800.0,0.44811988]
[1752379405628,1.50058991,117810.0,117800.0,0.44811988]
[1752379406124,0.92250991,117810.0,117800.0,0.44811988]
[1752379406426,1.56166919,117810.0,117800.0,0.44811988]
[1752379411232,1.5413831,117810.0,117800.0,0.44811988]
[1752379411427,1.56169258,117810.0,117800.0,0.44811988]
[1752379417734,1.29440536,117810.0,117800.0,0.44811988]
[1752379417934,1.56169258,117810.0,117800.0,0.44811988]
[1752379418429,1.20089258,117810.0,117800.0,0.44811988]
[1752379418629,1.56169258,117810.0,117800.0,0.44811988]
[1752379421635,1.20089258,117810.0,117800.0,0.44811988]
[1752379421936,1.56169258,117810.0,117800.0,0.44811988]
[1752379422229,1.20089258,117810.0,117800.0,0.44811988]
[1752379422636,1.56169258,117810.0,117800.0,0.44811988]
[1752379425743,1.56169258,117810.0,117800.0,0.18083266]
[1752379426042,1.56169258,117810.0,117800.0,0.44811988]
[1752379431046,1.20089258,117810.0,117800.0,0.44811988]
[1752379431345,1.56169258,117810.0,117800.0,0.44811988]
[1752379433345,1.56169258,117810.0,117800.0,0.18083266]
[1752379433546,1.56169258,117810.0,117800.0,0.44811988]
[1752379434546,1.20089258,117810.0,117800.0,0.44811988]
[1752379434747,1.56169258,117810.0,117800.0,0.44811988]
[1752379438447,0.2464654,117790.0,117780.0,0.1877178]
[1752379438753,1.1114221,117790.0,117780.0,0.45480502]
[1752379438952,1.1343121,117790.0,117780.0,0.45480502]
[1752379440152,0.86702488,117790.0,117780.0,0.45480502]
[1752379440351,1.1343121,117790.0,117780.0,0.45480502]
[1752379440955,1.1343121,117790.0,117780.0,0.45580502]
[1752379442655,1.1343121,117790.0,117780.0,0.46467876]
[1752379447559,1.1343121,117790.0,117780.0,0.19739154]
[1752379447762,1.1343121,117790.0,117780.0,0.46467876]
[1752379448962,1.1343121,117790.0,117780.0,0.19739154]
[1752379449163,1.1343121,117790.0,117780.0,0.46467876]
[1752379451860,1.1343121,117790.0,117780.0,0.02764824]
[1752379452066,1.4966721,117790.0,117780.0,0.17962354]
[1752379452365,1.4966721,117790.0,117780.0,0.00987374]
[1752379453865,1.4966721,117790.0,117780.0,0.17962344]
[1752379458767,1.47636262,117790.0,117780.0,0.17962344]
[1752379459065,1.49663625,117790.0,117780.0,0.17962344]
[1752379461668,1.49703625,117790.0,117780.0,0.17962344]
[1752379463268,1.49699625,117790.0,117780.0,0.17962344]
[1752379463769,1.22970903,117790.0,117780.0,0.17962344]
[1752379463966,1.49699625,117790.0,117780.0,0.17962344]
[1752379465570,1.49699625,117790.0,117780.0,0.44691066]
[1752379467261,0.91791625,117790.0,117780.0,0.44691066]
[1752379467464,0.86882903,117790.0,117780.0,1.09774788]
[1752379467664,0.28982903,117790.0,117780.0,1.09774788]
[1752379467869,0.86878903,117790.0,117780.0,1.09774788]
[1752379468070,0.86878903,117790.0,117780.0,0.83046066]
[1752379468474,0.86878903,117790.0,117780.0,0.56317344]
[1752379468772,0.86878903,117790.0,117780.0,0.46966066]
[1752379469792,0.86886903,117790.0,117780.0,0.46966066]
[1752379469969,1.13615625,117790.0,117780.0,0.20237344]
[1752379470174,0.86886903,117790.0,117780.0,0.46966066]
[1752379471571,0.86886903,117790.0,117780.0,0.44691066]
[1752379471877,1.49695625,117790.0,117780.0,0.44691066]
[1752379472174,1.13615625,117790.0,117780.0,0.44691066]
[1752379472580,1.49695625,117790.0,117780.0,0.44691066]
[1752379473271,1.13615625,117790.0,117780.0,0.44691066]
[1752379473471,1.49695625,117790.0,117780.0,0.44691066]
[1752379474777,1.22966903,117790.0,117780.0,0.44691066]
[1752379474977,1.49695625,117790.0,117780.0,0.44691066]
[1752379475681,1.13615625,117790.0,117780.0,0.44691066]
[1752379475874,1.49695625,117790.0,117780.0,0.44691066]
[1752379476177,1.13615625,117790.0,117780.0,0.44691066]
[1752379476378,1.49695625,117790.0,117780.0,0.44691066]
[1752379476878,1.13615625,117790.0,117780.0,0.44691066]
[1752379477078,1.49695625,117790.0,117780.0,0.44691066]
[1752379477678,1.13615625,117790.0,117780.0,0.44691066]
[1752379478380,1.13615625,117790.0,117780.0,0.17962344]
[1752379478581,1.13615625,117790.0,117780.0,0.44691066]
[1752379480676,0.28982903,117790.0,117780.0,0.44691066]
[1752379480877,0.86902903,117790.0,117780.0,0.83046066]
[1752379481578,0.86902903,117790.0,117780.0,0.46966066]
[1752379484583,0.86902903,117790.0,117780.0,0.73694788]
[1752379484584,0.86886903,117790.0,117780.0,0.73694788]
[1752379484885,0.86886903,117790.0,117780.0,0.83046066]
[1752379485592,0.86886903,117790.0,117780.0,0.46966066]
[1752379486987,0.86886903,117790.0,117780.0,0.20237344]
[1752379487187,1.13615625,117790.0,117780.0,0.46966066]
[1752379488285,0.86886903,117790.0,117780.0,0.46966066]
[1752379488988,0.86886903,117790.0,117780.0,0.20237344]
[1752379489289,0.86886903,117790.0,117780.0,0.44691066]
[1752379490587,1.13615625,117790.0,117780.0,0.44691066]
[1752379517310,0.86886903,117790.0,117780.0,0.44691066]
[1752379517511,1.13615625,117790.0,117780.0,0.44691066]
[1752379525013,1.13615625,117790.0,117780.0,0.17962344]
[1752379525214,1.13615625,117790.0,117780.0,0.44691066]
[1752379532826,1.19715553,117790.0,117780.0,0.44691066]
[1752379533431,1.55795553,117790.0,117780.0,0.44691066]
[1752379535627,1.49695625,117790.0,117780.0,0.44691066]
[1752379536024,1.22966903,117790.0,117780.0,0.44691066]
[1752379536827,1.49695625,117790.0,117780.0,0.44691066]
[1752379537428,1.13615625,117790.0,117780.0,0.44691066]
[1752379545628,0.86886903,117790.0,117780.0,0.44691066]
[1752379545830,1.13615625,117790.0,117780.0,0.44691066]
[1752379546026,0.86886903,117790.0,117780.0,0.44691066]
[1752379551444,0.86886903,117790.0,117780.0,0.80771066]
[1752379551744,0.86886903,117790.0,117780.0,0.44691066]
[1752379554244,1.13615625,117790.0,117780.0,0.44691066]
[1752379560146,0.86886903,117790.0,117780.0,0.44691066]
[1752379560351,1.13615625,117790.0,117780.0,0.44691066]
[1752379560950,1.13630173,117790.0,117780.0,0.27716096]
[1752379561249,1.49710173,117790.0,117780.0,0.00987374]
[1752379562854,1.49710173,117790.0,117780.0,0.27716096]
[1752379564752,1.49710173,117790.0,117780.0,0.44691006]
[1752379565849,1.55810101,117790.0,117780.0,0.44691006]
[1752379566753,1.49710173,117790.0,117780.0,0.44691006]
[1752379567559,1.49710173,117790.0,117780.0,0.27716096]
[1752379567753,1.55810101,117790.0,117780.0,0.00987374]
[1752379572360,1.49710173,117790.0,117780.0,0.00987374]
[1752379578169,1.49710173,117790.0,117780.0,0.27716096]
[1752379578363,1.49710173,117790.0,117780.0,0.00987374]
[1752379578565,1.49710173,117790.0,117780.0,0.27716096]
[1752379579374,1.49710173,117790.0,117780.0,0.00987374]
[1752379579871,1.49710173,117790.0,117780.0,0.27716096]
[1752379580371,1.49710173,117790.0,117780.0,0.00987374]
[1752379582268,1.49710173,117790.0,117780.0,0.27716096]
[1752379583669,1.13630173,117790.0,117780.0,0.27716096]
[1752379584873,1.22981451,117790.0,117780.0,0.44690986]
[1752379585074,1.49710173,117790.0,117780.0,0.44690986]
[1752379585273,1.13630173,117790.0,117780.0,0.44690986]
[1752379585590,0.28997451,117790.0,117780.0,0.44690986]
[1752379585769,0.28997451,117790.0,117780.0,0.73694708]
[1752379585969,0.86769451,117790.0,117780.0,0.73694708]
[1752379586576,0.86769451,117790.0,117780.0,1.09774708]
[1752379587479,0.86769451,117790.0,117780.0,0.56317264]
[1752379587681,0.86769451,117790.0,117780.0,1.09774708]
[1752379587877,0.28997451,117790.0,117780.0,1.09774708]
[1752379588178,0.86761451,117790.0,117780.0,1.09774708]
[1752379588373,0.86761451,117790.0,117780.0,0.56317264]
[1752379588580,0.86761451,117790.0,117780.0,0.83045986]
[1752379590878,1.13490173,117790.0,117780.0,0.80770986]
[1752379591575,1.13490173,117790.0,117780.0,0.27716096]
[1752379592281,1.13490173,117790.0,117780.0,0.44690976]
[1752379596586,1.13490173,117790.0,117780.0,0.00987374]
[1752379599280,1.49570173,117790.0,117780.0,0.00987374]
[1752379599686,1.49570173,117790.0,117780.0,0.27716096]
[1752379600488,1.49570173,117790.0,117780.0,0.00987374]
[1752379601191,1.49570173,117790.0,117780.0,0.27716096]
[1752379603798,1.22841451,117790.0,117780.0,0.27716096]
[1752379604004,1.49570173,117790.0,117780.0,0.27716096]
[1752379604998,1.49570173,117790.0,117780.0,0.17962254]
[1752379605195,1.49570173,117790.0,117780.0,0.44690976]
[1752379615897,1.19590101,117790.0,117780.0,0.44690976]
[1752379618100,1.13490173,117790.0,117780.0,0.44690976]
[1752379621505,1.19590101,117790.0,117780.0,0.44690976]
[1752379625110,1.55670101,117790.0,117780.0,0.17962254]
[1752379625300,1.55670101,117790.0,117780.0,0.44690976]
[1752379625806,1.49570173,117790.0,117780.0,0.44690976]
[1752379627815,1.13490173,117790.0,117780.0,0.44690976]
[1752379628015,1.49570173,117790.0,117780.0,0.44690976]
[1752379629919,1.49570173,117790.0,117780.0,0.17962254]
[1752379630119,1.49570173,117790.0,117780.0,0.27716096]
[1752379630316,1.49570173,117790.0,117780.0,0.00987374]
[1752379630716,1.82398823,117790.0,117780.0,0.001]
[1752379630914,1.55670101,117790.0,117780.0,0.001]
[1752379632210,1.91750101,117790.0,117780.0,0.001]
[1752379633925,1.91750101,117790.0,117760.0,0.0018983]
[1752379633926,0.2690033,117770.0,117760.0,0.0018983]
[1752379634223,1.55660139,117770.0,117760.0,0.0016983]
[1752379635425,1.49582963,117770.0,117760.0,0.0036983]
[1752379635620,1.49582963,117770.0,117760.0,0.0046983]
[1752379636720,0.91770963,117770.0,117760.0,0.0046983]
[1752379636916,1.49582963,117770.0,117760.0,0.0046983]
[1752379637831,1.49574963,117770.0,117760.0,0.0046983]
[1752379641729,0.91770963,117770.0,117760.0,0.0046983]
[1752379641929,1.49562963,117770.0,117760.0,0.0046983]
[1752379642830,0.91770963,117770.0,117760.0,0.0046983]
[1752379643124,1.49562963,117770.0,117760.0,0.0046983]
[1752379646430,1.13482963,117770.0,117760.0,0.0046983]
[1752379646638,1.49562963,117770.0,117760.0,0.0046983]
[1752379650444,1.13482963,117770.0,117760.0,0.0046983]
[1752379650642,1.49562963,117770.0,117760.0,0.0046983]
[1752379657436,1.55668139,117770.0,117760.0,0.0046983]
[1752379663349,1.49562963,117770.0,117760.0,0.0046983]
[1752379664350,0.65042241,117770.0,117760.0,0.27198552]
[1752379664552,1.19531752,117770.0,117760.0,0.27198552]
[1752379664748,1.19531752,117770.0,117760.0,0.44176322]
[1752379665264,0.3507103,117770.0,117760.0,0.44337322]
[1752379665455,0.86702241,117770.0,117760.0,0.82692322]
[1752379665850,0.86702241,117770.0,117760.0,0.82792322]
[1752379667354,0.28962241,117770.0,117760.0,0.82792322]
[1752379670258,0.28885839,117770.0,117760.0,0.82792322]
[1752379671460,0.28885839,117770.0,117760.0,0.82692322]
[1752379673360,0.28885839,117770.0,117760.0,0.46612322]
[1752379673563,0.28885839,117770.0,117760.0,0.82692322]
[1752379675164,0.28885839,117770.0,117760.0,0.559636]
[1752379675365,0.28885839,117770.0,117760.0,0.82692322]
[1752379677767,0.28885839,117770.0,117760.0,0.559636]
[1752379677966,0.28885839,117770.0,117760.0,0.82692322]
[1752379678968,0.55614561,117770.0,117760.0,0.82692322]
[1752379679164,0.55614561,117770.0,117760.0,0.46612322]
[1752379680168,0.28885839,117770.0,117760.0,0.46612322]
[1752379680368,0.55614561,117770.0,117760.0,0.46612322]
[1752379685974,0.28885839,117770.0,117760.0,0.46612322]
[1752379686173,0.55614561,117770.0,117760.0,0.46612322]
[1752379686474,0.55614561,117770.0,117760.0,1.62060322]
[1752379688480,0.28885839,117770.0,117760.0,1.62060322]
[1752379691982,0.28885839,117770.0,117760.0,1.98140322]
[1752379696288,0.25795839,117770.0,117760.0,1.98240322]
[1752379696483,0.01985509,117770.0,117760.0,2.24969044]
[1752379697084,0.01985509,117770.0,117760.0,1.98240322]
[1752379697787,0.01985509,117770.0,117760.0,1.98340322]
[1752379698894,0.01985509,117770.0,117760.0,1.98240322]
[1752379699088,0.01985509,117770.0,117760.0,1.98440322]
[1752379699289,0.01985509,117770.0,117760.0,2.25169044]
[1752379699688,0.01985509,117770.0,117760.0,2.42152244]
[1752379702286,0.0002,117770.0,117760.0,2.42152244]
[1752379704896,0.0002,117770.0,117760.0,2.25169044]
[1752379705084,0.0002,117770.0,117760.0,2.42152244]
[1752379706189,0.01981432,117770.0,117760.0,2.42152244]
[1752379706390,0.1091326,117790.0,117760.0,2.42152244]
[1752379706391,0.236442,117790.0,117760.0,2.26882604]
[1752379706594,0.26198516,117790.0,117780.0,1.09048334]
[1752379706794,0.26198516,117790.0,117780.0,2.24484334]
[1752379707194,0.06797866,117790.0,117780.0,2.24484334]
[1752379707501,0.23771316,117790.0,117780.0,2.24484334]
[1752379708397,0.26197316,117790.0,117780.0,2.24484334]
[1752379712701,0.09223866,117790.0,117780.0,2.24484334]
[1752379714101,0.26197316,117790.0,117780.0,2.24484334]
[1752379717400,0.26197316,117790.0,117780.0,1.88404334]
[1752379717709,0.26197316,117790.0,117780.0,2.24484334]
[1752379718004,0.29206316,117790.0,117780.0,2.24484334]
[1752379718904,0.29206316,117790.0,117780.0,1.88404334]
[1752379719106,0.29206316,117790.0,117780.0,2.24484334]
[1752379719899,0.29206316,117790.0,117780.0,1.88404334]
[1752379720205,0.29206316,117790.0,117780.0,2.24484334]
[1752379724408,0.29202284,117790.0,117780.0,2.24484334]
[1752379724610,0.29222284,117790.0,117780.0,2.24484334]
[1752379735119,0.29222284,117790.0,117780.0,1.88404334]
[1752379735318,0.29222284,117790.0,117780.0,2.24484334]
[1752379741224,0.12248834,117790.0,117780.0,2.24484334]
[1752379741522,0.09239834,117790.0,117780.0,2.24484334]
[1752379742525,0.01968834,117790.0,117780.0,2.24484334]
[1752379742728,0.04501,117800.0,117790.0,0.1713445]
[1752379743025,0.04501,117800.0,117790.0,1.97746172]
[1752379743915,0.04601,117800.0,117790.0,1.97746172]
[1752379744622,0.2157301,117800.0,117790.0,1.97746172]
[1752379744823,0.2392401,117800.0,117790.0,1.97746172]
[1752379745039,0.2392401,117800.0,117790.0,2.04487383]
[1752379748830,0.2700601,117800.0,117790.0,2.04487383]
[1752379749128,0.2710601,117800.0,117790.0,2.04487383]
[1752379753335,0.2710601,117800.0,117790.0,1.68407383]
[1752379753531,0.2710601,117800.0,117790.0,2.04487383]
[1752379754634,0.29069957,117800.0,117790.0,2.04487383]
[1752379776554,0.29069957,117800.0,117790.0,1.77758661]
[1752379776756,0.29089957,117800.0,117790.0,2.04487383]
[1752379786167,0.29089957,117800.0,117790.0,1.68407383]
[1752379786469,0.29089957,117800.0,117790.0,2.04487383]
[1752379790369,0.29089957,117800.0,117790.0,1.68407383]
[1752379790573,0.29089957,117800.0,117790.0,2.04487383]
[1752379798778,0.26007957,117800.0,117790.0,2.04487383]
[1752379799077,0.06684947,117800.0,117790.0,2.04487383]
[1752379799272,0.02083947,117800.0,117790.0,2.31216105]
[1752379801379,0.02083947,117800.0,117790.0,2.81216105]
[1752379802482,0.002,117810.0,117800.0,0.1716301]
[1752379802676,0.002,117810.0,117800.0,2.2387853]
[1752379810684,0.07434,117810.0,117800.0,2.2387853]
[1752379811306,0.002,117810.0,117800.0,2.2387853]
[1752379812088,0.2420227,117830.0,117820.0,0.1696913]
[1752379812282,0.2420227,117830.0,117820.0,1.95417852]
[1752379812484,0.07234,117830.0,117820.0,1.95417852]
[1752379812888,0.2420169,117830.0,117820.0,1.95417852]
[1752379813187,0.07234,117830.0,117820.0,1.95417852]
[1752379814405,0.2420169,117830.0,117820.0,1.95417852]
[1752379814585,0.26181059,117830.0,117820.0,1.97152787]
[1752379814787,0.09213369,117830.0,117820.0,1.97152787]
[1752379816087,0.26181059,117830.0,117820.0,1.97152787]
[1752379816789,0.09213369,117830.0,117820.0,1.97152787]
[1752379819589,0.01979369,117830.0,117820.0,1.97152787]
[1752379819784,0.01999369,117830.0,117820.0,1.97152787]
[1752379820780,0.01999369,117830.0,117820.0,2.33232787]
[1752379824289,0.04424369,117830.0,117820.0,2.33232787]
[1752379827895,0.09233369,117830.0,117820.0,2.33232787]
[1752379830097,0.09233369,117830.0,117820.0,2.06504065]
[1752379830295,0.09233369,117830.0,117820.0,2.33232787]
[1752379831390,0.07254,117830.0,117820.0,2.33232787]
[1752379831591,0.09227972,117830.0,117820.0,2.33232787]
[1752379831799,0.26195662,117830.0,117820.0,2.33232787]
[1752379834403,0.26195662,117830.0,117820.0,2.06504065]
[1752379834703,0.26195662,117830.0,117820.0,2.33232787]
[1752379835000,0.29520662,117830.0,117820.0,2.33232787]
[1752379837594,0.29520662,117830.0,117820.0,1.97152787]
[1752379838303,0.29520662,117830.0,117820.0,1.61072787]
[1752379838509,0.29520662,117830.0,117820.0,1.97152787]
[1752379843812,0.29520662,117830.0,117820.0,1.96680517]
[1752379848215,0.29520662,117830.0,117820.0,1.60600517]
[1752379848416,0.29520662,117830.0,117820.0,1.96680517]
[1752379852314,0.29520662,117830.0,117820.0,1.53454935]
[1752379852510,0.2403458,117810.0,117800.0,0.23186328]
[1752379852714,0.2403458,117810.0,117800.0,0.55382085]
[1752379852715,0.55555004,117810.0,117800.0,0.55382085]
[1752379852909,0.29298552,117810.0,117800.0,0.55382085]
[1752379864228,0.29298552,117810.0,117800.0,1.17718537]
[1752379864229,0.09057972,117810.0,117800.0,1.17718537]
[1752379864430,0.26028542,117810.0,117800.0,1.17718537]
[1752379865029,0.26028542,117810.0,117800.0,0.91462085]
[1752379865430,0.26028542,117810.0,117800.0,1.17718537]
[1752379866430,0.29298542,117810.0,117800.0,0.91462085]
[1752379873627,0.29298542,117810.0,117800.0,0.55382085]
[1752379874636,0.29298542,117810.0,117800.0,0.51139095]
[1752379874637,0.55554994,117810.0,117800.0,0.51139095]
[1752379874833,1.75639446,117810.0,117800.0,0.00169772]
[1752379875037,1.49382994,117810.0,117800.0,0.00169772]
[1752379875936,1.49382994,117810.0,117800.0,0.01687427]
[1752379876136,1.49382994,117810.0,117800.0,0.00169772]
[1752379876941,1.49398994,117810.0,117800.0,0.17141792]
[1752379877144,1.49398994,117810.0,117800.0,0.43398244]
[1752379877542,1.49398994,117810.0,117800.0,0.26426224]
[1752379877943,1.23142542,117810.0,117800.0,0.00169772]
[1752379878148,1.49398994,117810.0,117800.0,0.00169772]
[1752379879347,1.49398994,117810.0,117800.0,0.01739208]
[1752379879937,1.49398994,117810.0,117800.0,0.2799566]
[1752379880747,1.49398994,117810.0,117800.0,0.26426224]
[1752379881648,1.49398994,117810.0,117800.0,0.00169772]
[1752379883252,1.49398994,117810.0,117800.0,0.01665052]
[1752379883447,1.49398994,117810.0,117800.0,0.00169772]
[1752379885852,1.55507315,117810.0,117800.0,0.00169772]
[1752379886150,1.55503975,117810.0,117800.0,0.00169772]
[1752379886550,1.55503975,117810.0,117800.0,0.01682516]
[1752379886769,1.55503975,117810.0,117800.0,0.00169772]
[1752379887752,1.55503975,117810.0,117800.0,0.26426224]
[1752379888354,1.49395654,117810.0,117800.0,0.26426224]
[1752379888852,1.49395654,117810.0,117800.0,0.00169772]
[1752379890355,1.23111202,117810.0,117800.0,0.43398234]
[1752379890556,1.49367654,117810.0,117800.0,0.43398234]
[1752379891053,1.49367654,117810.0,117800.0,0.4493748]
[1752379892458,1.49367654,117810.0,117800.0,0.2796547]
[1752379894766,1.49367654,117810.0,117800.0,0.01709018]
[1752379894966,1.49367654,117810.0,117800.0,0.2796547]
[1752379896071,1.49367654,117810.0,117800.0,0.18681028]
[1752379896267,1.49367654,117810.0,117800.0,0.4493748]
[1752379897069,1.49367654,117810.0,117800.0,0.2796547]
[1752379899168,1.49367654,117810.0,117800.0,0.4493748]
[1752379903777,0.91631654,117810.0,117800.0,0.4493748]
[1752379904073,1.49367654,117810.0,117800.0,0.4493748]
[1752379904465,1.55475975,117810.0,117800.0,0.4493748]
[1752379907874,1.49367654,117810.0,117800.0,0.4493748]
[1752379914080,1.23111202,117810.0,117800.0,0.4493748]
[1752379914280,1.49367654,117810.0,117800.0,0.4493748]
[1752379915380,1.13287654,117810.0,117800.0,0.4493748]
[1752379915580,1.49367654,117810.0,117800.0,0.4493748]
[1752379917684,1.55475975,117810.0,117800.0,0.4493748]
[1752379917897,1.55475975,117810.0,117800.0,0.18681028]
[1752379918075,1.55475975,117810.0,117800.0,0.4493748]
[1752379918581,1.55475975,117810.0,117800.0,0.2796547]
[1752379918781,1.81732427,117810.0,117800.0,0.00169772]
[1752379920084,1.81732427,117810.0,117800.0,0.01696988]
[1752379920385,1.55475975,117810.0,117800.0,0.00169772]
[1752379920884,1.55475975,117810.0,117800.0,0.17141782]
[1752379921279,1.55475975,117810.0,117800.0,0.43398234]
[1752379923384,1.55475975,117810.0,117800.0,0.17141782]
[1752379923587,1.55475975,117810.0,117800.0,0.43398234]
[1752379923987,1.49367654,117810.0,117800.0,0.43398234]
[1752379924690,1.49367654,117810.0,117800.0,0.4496044]
[1752379925887,1.13287654,117810.0,117800.0,0.4496044]
[1752379926088,1.49367654,117810.0,117800.0,0.4496044]
[1752379927692,1.49367654,117810.0,117800.0,0.18703988]
[1752379927896,1.49367654,117810.0,117800.0,0.4496044]
[1752379928496,1.49367654,117810.0,117800.0,0.2798843]
[1752379928890,1.49367654,117810.0,117800.0,0.01731978]
[1752379929092,1.49367654,117810.0,117800.0,0.2798843]
[1752379929303,1.55475975,117810.0,117800.0,0.2798843]
[1752379930094,1.55475975,117810.0,117800.0,0.01731978]
[1752379933096,1.5547678,117810.0,117800.0,0.01731978]
[1752379933800,1.1939678,117810.0,117800.0,0.01731978]
[1752379933992,1.5547678,117810.0,117800.0,0.01731978]
[1752379935806,1.29220328,117810.0,117800.0,0.01731978]
[1752379936001,1.5547678,117810.0,117800.0,0.01731978]
[1752379937498,1.1939678,117810.0,117800.0,0.01731978]
[1752379937799,1.5547678,117810.0,117800.0,0.01731978]
[1752379941300,1.5547678,117810.0,117800.0,0.2798843]
[1752379944610,1.5547678,117810.0,117800.0,0.01731978]
[1752379945208,1.5547678,117810.0,117800.0,0.2798843]
[1752379945604,1.5547678,117810.0,117800.0,0.01731978]
[1752379948910,1.5547678,117810.0,117800.0,0.2798843]
[1752379949905,1.1939678,117810.0,117800.0,0.2798843]
[1752379950104,1.5547678,117810.0,117800.0,0.2798843]
[1752379950407,1.5547678,117810.0,117800.0,0.01731978]
[1752379951707,1.5547678,117810.0,117800.0,0.2798843]
[1752379955911,1.5547678,117810.0,117800.0,0.01731978]
[1752379956510,1.1939678,117810.0,117800.0,0.01731978]
[1752379956711,1.5547678,117810.0,117800.0,0.01731978]
[1752379960615,1.5321878,117810.0,117800.0,0.01731978]
[1752379962713,1.5571078,117810.0,117800.0,0.01731978]
[1752379966312,1.5571078,117810.0,117800.0,0.2798843]